Cogmind - Beta 10.2 *** ADVENTURER MODE // 2021.05.10 @ 20:37:58 Player: Catalyst Result: Smashed by cave-in Performance ------------- Evolutions (4) 2000 Regions Visited (17) 3400 Robots Destroyed (247) 1235 Value Destroyed (10197) 10197 Prototype IDs (19) 380 Alien Tech Used (0) 0 Bonus (2578) 2578 TOTAL SCORE: 19790 Bonus ------- High Alert Combat Kills 415 Follower Combat Kills 1180 Entered Garrisons 200 Used RIF Installer 500 Met Imprinter 300 Met R17 at Cetus 500 Friendly Fire -517 Cogmind --------- Core Integrity 0/850 Matter 194/300 Energy 158/160 System Corruption 6% Temperature Cool (0) Movement Walking (120) Location -6/Hub_04(d) Parts ------- > --- POWER (1) -------- Light Fission Core > --- PROPULSION (6) --- Carbon-fiber Leg Flexi-carbon Leg Flexi-carbon Leg Armored Leg Armored Leg Enhanced Flexi-carbon Leg > --- UTILITY (5) ------ Medium Storage Unit Large Storage Unit Enhanced Optical Array Centrium Medium Armor Plating > --- WEAPON (3) ------- KE Penetrator Improved KE Penetrator > --- INVENTORY (14) --- Carbon-fiber Leg Flexi-carbon Leg High-capacity Storage Unit Phase Shifter Hacking Drone Bay (1/1) Coil Gun Improved KE Penetrator Advanced Assault Cannon Heavy Flak Cannon Rocket Array Precision Rocket Launcher Precision Rocket Launcher Improved Datajack Great Axe Peak State ------------ > --- POWER ------------ Quantum Reactor > --- PROPULSION ------- Flexi-carbon Leg Flexi-carbon Leg Flexi-carbon Leg Armored Leg Armored Leg Enhanced Flexi-carbon Leg > --- UTILITY ---------- Advanced Heat Sink Medium Storage Unit Large Storage Unit Enhanced Optical Array Centrium Medium Armor Plating > --- WEAPON ----------- KE Penetrator Railgun Improved KE Penetrator > --- INVENTORY -------- Light Fission Core Carbon-fiber Leg Flexi-carbon Leg High-capacity Storage Unit Phase Shifter Hacking Drone Bay Improved KE Penetrator Advanced Assault Cannon Heavy Flak Cannon Rocket Array Precision Rocket Launcher Precision Rocket Launcher Improved Datajack Great Axe [Rating: 88] Favorites ----------- Power Reinforced Deuterium Engine Engine Reinforced Deuterium Engine Power Core Fission Core Reactor Quantum Reactor Propulsion Carbon-fiber Leg Treads Heavy Treads Leg Carbon-fiber Leg Wheel Armored Wheel Hover Unit Hover Unit Flight Unit VTOL Module Utility Advanced Targeting Computer Device Advanced Heat Sink Storage High-capacity Storage Unit Processor Advanced Targeting Computer Hackware Relay Coupler [Grunt] Protection Centrium Medium Armor Plating Weapon Gauss Cannon Energy Gun Precision Shock Rifle Energy Cannon Particle Cannon Ballistic Gun Railgun Ballistic Cannon Gauss Cannon Launcher Improved Grenade Launcher Impact Weapon Powered Hammer Slashing Weapon Makeshift Axe Piercing Weapon Makeshift Spear Special Melee Weapon Improved Datajack Build | -11 -10 -10 -9 -9 -8 -7 -7 -7 -7 -6 -6 -6 -6 -6 -6 -6 -6 ------- Run | Scr Mat Min Mat Min Mat Fac Low Low Zio Pro Fac Gar Fac Ext Cet Arc Hub Slots Evolved 8 | . . . 2 . 2 2 . . . . 2 . . . . . . Power . | . . . . . . . . . . . . . . . . . . Propulsion 4 | . . . 1 . 1 1 . . . . 1 . . . . . . Utility 3 | . . . 1 . 1 . . . . . 1 . . . . . . Weapon 1 | . . . . . . 1 . . . . . . . . . . . Parts Attached 283 | . 6 . 25 . 19 49 4 6 7 9 24 26 62 12 26 2 6 Power 19 | . . . 3 . 3 5 . . . . 1 1 4 . 1 . 1 Engine 9 | . . . 3 . 3 2 . . . . 1 . . . . . . Core 9 | . . . . . . 3 . . . . . 1 4 . . . 1 Reactor 1 | . . . . . . . . . . . . . . . 1 . . Propulsion 79 | . . . 12 . 3 16 . 2 . . 9 6 16 4 9 . 2 Treads 8 | . . . . . . 4 . 2 . . . . . . 2 . . Leg 47 | . . . 9 . 3 2 . . . . 9 . 11 4 7 . 2 Wheel 6 | . . . . . . 3 . . . . . 1 2 . . . . Hover 3 | . . . 3 . . . . . . . . . . . . . . Flight 15 | . . . . . . 7 . . . . . 5 3 . . . . Utility 52 | . 3 . 4 . 4 8 . 2 2 . 1 6 17 . 5 . . Device 30 | . . . . . 1 5 . 2 2 . 1 2 13 . 4 . . Storage 10 | . 2 . 2 . 1 2 . . . . . 1 2 . . . . Processor 6 | . 1 . 1 . 1 1 . . . . . . 2 . . . . Hackware 1 | . . . . . . . . . . . . 1 . . . . . Protection 5 | . . . 1 . 1 . . . . . . 2 . . 1 . . Artifact . | . . . . . . . . . . . . . . . . . . Weapon 133 | . 3 . 6 . 9 20 4 2 5 9 13 13 25 8 11 2 3 Energy Gun 26 | . . . 3 . . 9 . . . 1 2 4 6 . 1 . . Energy Cannon 16 | . . . 2 . 4 4 . . . 1 3 2 . . . . . Ballistic Gun 15 | . . . . . . . . . . . . 1 7 1 2 2 2 Ballistic Cannon 25 | . . . . . 4 3 2 1 . 2 1 . 4 4 4 . . Launcher 28 | . 2 . 1 . 1 2 1 . 4 4 1 3 3 1 4 . 1 Special Weapon . | . . . . . . . . . . . . . . . . . . Impact Weapon 6 | . . . . . . 1 . 1 . 1 2 1 . . . . . Slashing Weapon 9 | . . . . . . . . . . . 4 1 3 1 . . . Piercing Weapon 1 | . . . . . . . 1 . . . . . . . . . . Special Melee Weapon 7 | . 1 . . . . 1 . . 1 . . 1 2 1 . . . Unidentified Prototypes 14 | . . . 1 . 1 3 . . 3 . . . 1 . 5 . . Parts Lost 46 | . . . 1 . 2 9 . . . 1 1 18 7 1 2 . 4 Power 4 | . . . . . . 1 . . . . . 1 1 . . . 1 Propulsion 20 | . . . . . 1 4 . . . . 1 7 5 . 1 . 1 Utility 7 | . . . . . . 2 . . . . . 3 . . 1 . 1 Weapon 15 | . . . 1 . 1 2 . . . 1 . 7 1 1 . . 1 Highest Loss Streak 14 | . . . 1 . 2 5 . . . 1 1 14 6 1 1 . 2 Average Slot Usage (%) 89 | . 96 100 98 100 92 88 84 84 79 77 87 79 88 99 98 100 98 Engine 5 | . 14 14 11 11 9 4 7 7 7 7 6 4 . . . . . Core 1 | . . . . . . 1 . . . . . 1 5 6 . . 4 Treads 7 | . . . . . . 2 23 23 23 23 3 . . . . . . Leg 18 | . 28 28 29 33 31 7 . . . . 29 26 27 40 39 40 39 Wheel 2 | . . . . . . 14 . . . . . . 3 . . . . Flight 1 | . . . . . . 4 . . . . . 5 4 . . . . Device 6 | . . . . . 1 7 7 7 6 7 7 6 8 13 8 6 6 Storage 9 | . 14 14 11 11 9 10 7 7 7 7 6 5 11 13 13 13 13 Processor 12 | . 10 14 19 22 23 9 15 15 15 15 13 8 7 6 6 6 6 Energy Gun 4 | . . . 18 . . 16 3 . . 2 3 2 4 1 . . . Energy Cannon 2 | . . . 3 22 14 1 2 . . . 3 3 . . . . . Ballistic Gun 3 | . 18 14 . . . . . . . . . 1 3 11 11 17 19 Ballistic Cannon 4 | . . . . . 1 2 8 15 6 6 2 . 1 5 5 1 . Launcher 3 | . 8 14 . . 1 . 6 1 7 5 . . 5 . 1 . . Naked Turns . | . . . . . . . . . . . . . . . . . . Heaviest Build 74 | 12 25 25 45 32 52 66 69 69 69 65 66 71 64 62 74 72 69 Greatest Support 168 | 20 20 20 30 30 54 168 168 168 160 160 160 90 102 102 120 120 120 Greatest Overweight (x) 9 | . 1 1 4 1 1 2 . . . . 4 1 9 . . . . Average Overweight (x) . | . . 1 . 1 . 1 . . . . . . . . . . . Largest Inventory Capacity 18 | . 10 10 12 10 18 12 12 12 12 12 12 12 14 14 14 14 14 Average Capacity 12 | . 7 10 10 10 11 12 12 12 12 12 12 11 13 14 14 14 14 Most Carried 14 | . 9 10 11 10 12 12 12 12 12 12 12 12 14 14 14 14 14 Average Carried 11 | . 6 9 10 9 11 11 12 11 12 11 11 10 12 13 13 14 13 Final Capacity 14 | 6 10 10 10 10 12 12 12 12 12 12 12 10 14 14 14 14 14 Final Carried 14 | 6 9 10 10 10 12 12 12 12 12 11 12 10 14 14 14 14 14 Class Distribution -------------------- 43% | Mutant 20% | Gunner 18% | Scavenger-Mutant 12% | Scavenger-Tank Dominant Class ---------------- Mutant | -10/Materials Mutant | -10/Mines Mutant | -9/Materials Mutant | -9/Mines Mutant | -8/Materials Gunner | -7/Factory Gunner | -7/Lower Caves Mutant | -7/Lower Caves Mutant | -7/Zion Mutant | -6/Proximity Caves Scavenger-Mutant | -6/Factory Scavenger-Mutant | -6/Garrison Scavenger-Mutant | -6/Factory Scavenger-Tank | -6/Extension Scavenger-Tank | -6/Cetus Scavenger-Tank | -6/Archives Scavenger-Tank | -6/Hub_04(d) Resources | -11 -10 -10 -9 -9 -8 -7 -7 -7 -7 -6 -6 -6 -6 -6 -6 -6 -6 ----------- Run | Scr Mat Min Mat Min Mat Fac Low Low Zio Pro Fac Gar Fac Ext Cet Arc Hub Matter Collected 6942 | 164 47 62 349 . 191 873 389 205 49 270 406 471 1056 824 1015 277 294 Remotely . | . . . . . . . . . . . . . . . . . . Salvage Created 8992 | . 125 20 713 45 467 1606 280 106 24 376 593 547 1394 967 612 331 786 Parts 451 | . 9 . 61 7 34 77 7 8 . 15 20 36 68 31 29 17 32 Haulers Intercepted 6 | . 1 . 1 . 1 2 . . . . . . . 1 . . . Recyclers Shooed 6 | . 1 . . . . . . . . . . . 3 2 . . . Parts Field Recycled . | . . . . . . . . . . . . . . . . . . Retrieved Matter . | . . . . . . . . . . . . . . . . . . Parts Self-Destructed 30 | . . . . . . . 6 11 1 12 . . . . . . . Prevented . | . . . . . . . . . . . . . . . . . . Kills | -11 -10 -10 -9 -9 -8 -7 -7 -7 -7 -6 -6 -6 -6 -6 -6 -6 -6 ------- Run | Scr Mat Min Mat Min Mat Fac Low Low Zio Pro Fac Gar Fac Ext Cet Arc Hub Combat Hostiles Destroyed 209 | . 2 1 16 3 19 30 15 5 . 13 13 18 22 15 20 4 13 Melee 11 | . . . . . . 1 . . . . 6 4 . . . . . Guns 75 | . 2 . 12 . . 10 . . . 1 . 4 14 9 7 4 12 Cannons 58 | . . . . 3 17 6 5 5 . 5 5 2 1 6 3 . . AOE 60 | . . 1 4 . 2 10 10 . . 5 2 8 7 . 10 . 1 Classes Destroyed 15 | . 3 . 3 . . 5 1 . . 1 . . 2 . . . . Worker 6 | . . . . . . 5 . . . . . . . . . . 1 Builder 2 | . . . . . . . . . . . . . 2 . . . . Hauler 6 | . 1 . 1 . 1 2 . . . . . . . 1 . . . Recycler 4 | . . . . . . 1 . . . . . . 3 . . . . Operator 6 | . . . 2 . 1 1 . . . . . . 1 . . 1 . Watcher 12 | . 2 . 1 . . 5 . . . . . . 2 . 2 . . Swarmer 78 | . . . 6 3 14 5 8 3 . 4 4 13 4 2 12 . . Saboteur 1 | . . . . . . . . . . . . . 1 . . . . Grunt 74 | . 2 1 5 . 2 16 3 2 . 7 8 . 10 5 5 . 8 Brawler 3 | . . . . . . 1 1 . . . . . . . . . 1 Duelist 1 | . . . . . . . . . . 1 . . . . . . . Sentry 34 | . . . 5 . 3 3 2 . . 1 1 4 3 4 . 4 4 Hunter 7 | . . . . . . 3 . . . . . . 2 2 . . . Programmer 4 | . . . . . . 2 . . . . . . 2 . . . . Behemoth 3 | . . . . . . . 1 . . . . 1 . 1 . . . Cetus Guard 3 | . . . . . . . . . . . . . . . 3 . . Thug 2 | . . . . . . . . . . . . . . 2 . . . Savage 1 | . . . . . . . . . . . . . . . 1 . . Best Kill Streak 10 | . 3 1 5 3 7 10 8 5 . 4 3 6 5 4 7 3 8 Combat Bots Only 8 | . 2 1 5 3 7 8 8 5 . 4 3 6 3 4 7 3 5 Max Kills in Single Turn 5 | . 1 1 4 1 3 3 3 1 . 4 1 4 2 1 5 1 2 Gunslinging 1 | . . . 1 . . . . . . . . . 1 . . . 1 Exploded 5 | . . 1 4 . 2 2 3 . . 4 1 4 2 . 5 . 1 Melee 1 | . . . . . . 1 . . . . 1 1 . . . . . Uniques/NPCs Destroyed . | . . . . . . . . . . . . . . . . . . Combat | -11 -10 -10 -9 -9 -8 -7 -7 -7 -7 -6 -6 -6 -6 -6 -6 -6 -6 -------- Run | Scr Mat Min Mat Min Mat Fac Low Low Zio Pro Fac Gar Fac Ext Cet Arc Hub Damage Taken 10705 | . 122 42 241 31 517 1687 828 450 . 486 579 1786 1088 221 1362 422 843 Core 1533 | . 33 . 4 . 49 357 78 30 . 80 46 386 181 22 163 22 82 Absorbed by Shields 808 | . . . . . . . . . . . . 63 170 240 335 . . Core Remaining (%) 79 | 100 . 86 . 99 91 . . . . 22 . . . . . . . Volleys Fired 480 | . 11 3 28 3 41 60 17 12 . 34 13 41 78 48 46 20 25 Largest 3 | . 2 2 2 2 2 3 3 2 . 3 3 3 3 3 3 3 3 Hottest 239 | . 50 50 136 136 136 179 160 96 . 167 186 239 133 133 141 123 113 Shots Fired 1028 | . 17 6 52 6 70 161 44 24 . 52 31 62 120 133 119 60 71 Gun 604 | . 11 3 49 . . 96 1 . . 13 10 32 101 95 75 49 69 Cannon 348 | . . . 2 6 69 55 31 24 . 29 20 20 10 38 33 11 . Launcher 76 | . 6 3 1 . 1 10 12 . . 10 1 10 9 . 11 . 2 Special . | . . . . . . . . . . . . . . . . . . Kinetic 621 | . 11 3 . . 7 49 30 24 . 27 10 19 76 128 108 60 69 Thermal 99 | . . . 2 6 62 . . . . . 6 23 . . . . . Explosive 76 | . 6 3 1 . 1 10 12 . . 10 1 10 9 . 11 . 2 Electromagnetic 232 | . . . 49 . . 102 2 . . 15 14 10 35 5 . . . Robot Hit Streak 47 | . 9 7 10 3 38 31 22 41 . 47 25 26 32 18 21 26 23 Robot Miss Streak 4 | . 1 1 1 1 3 3 1 . . 1 1 2 2 3 4 2 2 Penetration Max 2 | . . . . . . . . 1 . . . . . 2 1 . . Secondary Targets 5 | . . . 1 . . . . . . . . . 2 . . . 2 Max Gunslinging Chain 1 | . . . 1 . . . . . . . . . 1 . . . 1 Shots Hit Robots 850 | . 15 5 38 4 57 129 34 23 7 46 38 57 107 101 90 43 56 Core Hits 504 | . 10 2 25 3 28 82 26 8 . 31 24 35 74 46 61 14 35 Critical Hits 37 | . 1 . 1 . . 1 4 3 . 4 . 2 2 5 3 3 8 Critical Kills 15 | . 1 . 1 . . 1 1 1 . 2 . 1 1 3 . 1 2 Critical Parts Destroyed 18 | . . . . . . . 1 2 . 2 . 1 1 2 2 1 6 Melee Attacks 98 | . 1 . . . . 19 . 5 7 5 33 11 12 5 . . . Impact 47 | . . . . . . 19 . 5 1 5 14 3 . . . . . Slashing 41 | . . . . . . . . . . . 19 8 10 4 . . . Piercing . | . . . . . . . . . . . . . . . . . . Sneak Attacks 11 | . 1 . . . . . . . 6 . . . 3 1 . . . Combat Hostiles . | . . . . . . . . . . . . . . . . . . Follow-up Attacks 7 | . . . . . . . . . . . 6 1 . . . . . Damage Inflicted 28459 | . 337 159 746 102 1286 4020 1946 716 110 2045 1223 1876 3983 3237 3503 1155 2015 Guns 11142 | . 78 17 588 . . 1648 . . . 190 149 465 1846 2401 1492 907 1361 Cannons 6504 | . . . 21 102 1143 868 676 571 . 661 389 314 149 776 586 248 . Explosions 9031 | . 259 142 137 . 143 1352 1270 . . 1049 174 762 1664 . 1425 . 654 Melee 1736 | . . . . . . 152 . 145 110 145 511 306 324 43 . . . Ramming 46 | . . . . . . . . . . . . 29 . 17 . . . Kinetic 12356 | . 78 17 . . 146 742 653 571 . 605 169 186 1462 3133 2078 1155 1361 Thermal 2764 | . . . 158 102 997 554 . . . 142 211 431 169 . . . . Explosive 7895 | . 259 142 . . 143 798 1270 . . 907 40 762 1495 . 1425 . 654 Electromagnetic 3662 | . . . 588 . . 1774 23 . . 246 292 162 533 44 . . . Impact 658 | . . . . . . 152 . 145 110 145 40 66 . . . . . Slashing 1078 | . . . . . . . . . . . 471 240 324 43 . . . Piercing . | . . . . . . . . . . . . . . . . . . Highest Corruption 1 | . . . . . . 1 1 1 1 . . . . . . . . Average Corruption 1 | . . . . . . 1 1 1 1 . . . . . . . . Corruption Purged . | . . . . . . . . . . . . . . . . . . Effects 9 | . . . . . . 2 4 3 . . . . . . . . . Message Errors 2 | . . . . . . . 1 1 . . . . . . . . . Energy Discharges 3 | . . . . . . 2 . 1 . . . . . . . . . Data Loss (minor) 4 | . . . . . . . 3 1 . . . . . . . . . Overload Shots . | . . . . . . . . . . . . . . . . . . Overflow Damage 1076 | . . . 16 . 26 288 101 30 102 128 12 17 220 37 87 12 . Projectiles 76 | . . . . . 6 6 . 6 . 9 . . . 37 . 12 . Explosions 760 | . . . 16 . 20 282 101 . . 58 . 17 179 . 87 . . Melee 240 | . . . . . . . . 24 102 61 12 . 41 . . . . Knockbacks 33 | . . . . . . 12 2 4 . 7 . . . 5 2 1 . Impact 6 | . . . . . . 2 . . . 4 . . . . . . . Kinetic 25 | . . . . . . 10 2 3 . 3 . . . 4 2 1 . Secondary 2 | . . . . . . . . 1 . . . . . 1 . . . Self-Inflicted Damage 1057 | . 35 10 . . 17 826 . . . 38 . 27 27 . 55 . 22 Shots 27 | . 2 1 . . 1 15 . . . 2 . 1 1 . 3 . 1 Rammed 4 | . . . . . . . . . . . . 4 . . . . . Targets Rammed 11 | . . . . . . . . . . . . 10 . 1 . . . Kicked 7 | . . . . . . . . . . . . 6 . 1 . . . Crushed . | . . . . . . . . . . . . . . . . . . Highest Temperature 369 | . 32 22 99 138 296 369 24 . . 322 351 139 21 3 18 6 6 Average Temperature 68 | . 17 11 33 75 116 33 8 . . 109 120 43 7 3 8 4 4 Received Heat Transfer 2626 | . 66 24 75 . 153 165 216 202 . 234 234 186 341 66 295 90 279 Effects 1 | . . . . . . . . . . 1 . . . . . . . Energy Bleed 1 | . . . . . . . . . . 1 . . . . . . . Siege Activations . | . . . . . . . . . . . . . . . . . . Robots Corrupted 6 | . . . . . . 4 . . . 2 . . . . . . . Combat Hostiles 5 | . . . . . . 3 . . . 2 . . . . . . . Parts Fried 22 | . . . . . . 19 . . . . . . 3 . . . . Impact Corruptions 10 | . . . . . . . . 2 4 4 . . . . . . . Robots Melted . | . . . . . . . . . . . . . . . . . . Combat Hostiles . | . . . . . . . . . . . . . . . . . . Parts Melted 8 | . . . . . 3 . . . . . 2 2 . . 1 . . Heat Transferred 3819 | . . . 187 185 1739 450 . . . 100 248 810 100 . . . . Parts Sabotaged . | . . . . . . . . . . . . . . . . . . Parts Stolen . | . . . . . . . . . . . . . . . . . . Parts Stripped . | . . . . . . . . . . . . . . . . . . Power Chain Reactions 6 | . . . 1 . . . . . . 1 1 . 3 . . . . Missiles Intercepted . | . . . . . . . . . . . . . . . . . . Alert | -11 -10 -10 -9 -9 -8 -7 -7 -7 -7 -6 -6 -6 -6 -6 -6 -6 -6 ------- Run | Scr Mat Min Mat Min Mat Fac Low Low Zio Pro Fac Gar Fac Ext Cet Arc Hub Peak Influence 615 | . 90 49 327 78 348 476 . . . . 420 611 543 408 615 398 559 Initial 277 | . . 29 15 8 . 9 . . . . 137 216 277 55 198 207 116 Average 242 | . 19 31 145 23 187 275 . . . . 285 448 303 175 405 334 369 Maximum Alert Level 2 | . . . 1 . 1 2 . . . . 2 2 2 2 2 1 2 Low Security (%) 38 | . 100 100 76 100 41 26 . . . . 12 . 21 54 3 . 14 Level 1 46 | . . . 23 . 58 59 . . . . 79 28 67 41 30 100 26 Level 2 15 | . . . . . . 13 . . . . 8 71 11 3 66 . 58 Level 3 . | . . . . . . . . . . . . . . . . . . Level 4 . | . . . . . . . . . . . . . . . . . . Level 5 . | . . . . . . . . . . . . . . . . . . High Security . | . . . . . . . . . . . . . . . . . . Max Security . | . . . . . . . . . . . . . . . . . . Squads Dispatched 30 | . . 1 2 . 1 8 . . . . 6 . 6 5 . . 1 Investigation 10 | . . 1 1 . . 2 . . . . 2 . 1 3 . . . Extermination 4 | . . . . . . 2 . . . . . . 2 . . . . Reinforcement 11 | . . . 1 . 1 3 . . . . 1 . 2 2 . . 1 Assault 1 | . . . . . . . . . . . . . 1 . . . . Garrison 4 | . . . . . . 1 . . . . 3 . . . . . . Intercept . | . . . . . . . . . . . . . . . . . . Construction Impeded 2 | . . . . . . 1 . . . . . . 1 . . . . Haulers Reinforced 1 | . . . . . . . . . . . . . 1 . . . . Stealth | -11 -10 -10 -9 -9 -8 -7 -7 -7 -7 -6 -6 -6 -6 -6 -6 -6 -6 --------- Run | Scr Mat Min Mat Min Mat Fac Low Low Zio Pro Fac Gar Fac Ext Cet Arc Hub Distress Signals 11 | . . . 1 . 4 1 . . . . 1 . . 1 1 . 2 Communications Jammed . | . . . . . . . . . . . . . . . . . . Distress Signals . | . . . . . . . . . . . . . . . . . . Times Spotted 307 | . 8 2 24 3 28 39 14 13 . 14 20 19 31 39 30 5 18 Peak Tracking Total 7 | . 3 2 5 3 7 4 7 7 . 4 4 6 5 5 7 1 6 Tactical Retreats 19 | . . . . . 1 . . 4 . 2 3 1 2 3 1 . 2 Traps | -11 -10 -10 -9 -9 -8 -7 -7 -7 -7 -6 -6 -6 -6 -6 -6 -6 -6 ------- Run | Scr Mat Min Mat Min Mat Fac Low Low Zio Pro Fac Gar Fac Ext Cet Arc Hub Traps Triggered 9 | . . . 1 . . . . . . . 1 4 1 2 . . . Indirectly . | . . . . . . . . . . . . . . . . . . Trap Hack Attempts 44 | . . . . . . . . . . . . 22 22 . . . . Triggered . | . . . . . . . . . . . . . . . . . . Disarmed 3 | . . . . . . . . . . . . 1 2 . . . . Reprogrammed 5 | . 4 . . . . . . . . . . 1 . . . . . Reused . | . . . . . . . . . . . . . . . . . . Traps Extracted . | . . . . . . . . . . . . . . . . . . Installed 2 | . . . . 1 . . 1 . . . . . . . . . . Triggered 1 | . . . . . . 1 . . . . . . . . . . . Machines | -11 -10 -10 -9 -9 -8 -7 -7 -7 -7 -6 -6 -6 -6 -6 -6 -6 -6 ---------- Run | Scr Mat Min Mat Min Mat Fac Low Low Zio Pro Fac Gar Fac Ext Cet Arc Hub Machines Disabled 70 | . 5 . . . 2 28 . 1 . . 1 3 7 5 6 6 6 Max in Single Turn 15 | . 3 . . . 1 15 . 1 . . 1 1 2 1 2 1 2 Garrison Access 3 | . . . . . . 1 . . . . . . 2 . . . . Garrison Relay 2 | . . . . . . . . . . . . 2 . . . . . Machines Sabotaged . | . . . . . . . . . . . . . . . . . . Garrisons Compromised . | . . . . . . . . . . . . . . . . . . Overloaded Fab Kills . | . . . . . . . . . . . . . . . . . . Fab Network Shutdowns . | . . . . . . . . . . . . . . . . . . Hacking | -11 -10 -10 -9 -9 -8 -7 -7 -7 -7 -6 -6 -6 -6 -6 -6 -6 -6 --------- Run | Scr Mat Min Mat Min Mat Fac Low Low Zio Pro Fac Gar Fac Ext Cet Arc Hub Machines Accessed 68 | . 4 1 6 . 5 11 . 2 . . 5 . 13 16 3 1 1 Terminals 43 | . 4 . 4 . 4 4 . 1 . . 1 . 6 15 3 . 1 Fabricators 5 | . . . . . . 2 . . . . 1 . 2 . . . . Repair Stations 1 | . . . . . . 1 . . . . . . . . . . . Recycling Units 7 | . . . . . 1 . . . . . 1 . 4 1 . . . Scanalyzers 5 | . . . 2 . . 3 . . . . . . . . . . . Garrison Access 4 | . . . . . . 1 . . . . 2 . 1 . . . . Total Hacks 152 | . 8 1 14 . 10 22 . 4 . . 10 . 31 32 7 10 3 Successful 77 | . 6 1 6 . 6 8 . 4 . . 3 . 17 12 3 10 1 Failed 75 | . 2 . 8 . 4 14 . . . . 7 . 14 20 4 . 2 Catastrophic 12 | . . . 2 . 1 3 . . . . 1 . 3 2 . . . Database Lockouts . | . . . . . . . . . . . . . . . . . . Manual 69 | . 6 . 13 . 9 14 . . . . 2 . 13 7 1 1 3 Terminals 96 | . 8 . 9 . 8 11 . 3 . . 1 . 16 30 7 . 3 Fabricators 8 | . . . . . . 3 . . . . 3 . 2 . . . . Repair Stations 2 | . . . . . . 2 . . . . . . . . . . . Recycling Units 18 | . . . . . 2 . . . . . 3 . 11 2 . . . Scanalyzers 9 | . . . 5 . . 4 . . . . . . . . . . . Garrison Access 7 | . . . . . . 2 . . . . 3 . 2 . . . . Terminal Hacks 43 | . 5 1 3 . 3 2 . 4 . . . . 3 9 3 10 . Record 18 | . . . 1 . . . . 3 . . . . 1 . 3 10 . Robot Analysis 2 | . . . . . . 1 . . . . . . . 1 . . . Open Door 6 | . . 1 . . . . . 1 . . . . . 4 . . . Level Access Points 1 | . . . . . 1 . . . . . . . . . . . . Branch Access Points 5 | . 1 . 1 . 1 1 . . . . . . 1 . . . . Alert Level 1 | . 1 . . . . . . . . . . . . . . . . Unreport Threat 6 | . 1 . 1 . 1 . . . . . . . 1 2 . . . Locate Traps 1 | . 1 . . . . . . . . . . . . . . . . Reprogram Traps 1 | . 1 . . . . . . . . . . . . . . . . Hauler Manifests 1 | . . . . . . . . . . . . . . 1 . . . Zone Layout 1 | . . . . . . . . . . . . . . 1 . . . Fabricator Hacks 4 | . . . . . . 2 . . . . . . 2 . . . . Network Status 1 | . . . . . . . . . . . . . 1 . . . . Build 3 | . . . . . . 2 . . . . . . 1 . . . . Repair Station Hacks 1 | . . . . . . 1 . . . . . . . . . . . Refit 1 | . . . . . . 1 . . . . . . . . . . . Recycling Unit Hacks 8 | . . . . . 1 . . . . . 1 . 5 1 . . . Retrieve Matter 1 | . . . . . . . . . . . . . 1 . . . . Retrieve Components 7 | . . . . . 1 . . . . . 1 . 4 1 . . . Scanalyzer . | . . . . . . . . . . . . . . . . . . Garrison Access Hacks 4 | . . . . . . 1 . . . . 1 . 2 . . . . Unlock Access 1 | . . . . . . . . . . . 1 . . . . . . Seal Access 2 | . . . . . . 1 . . . . . . 1 . . . . Coupler Status 1 | . . . . . . . . . . . . . 1 . . . . Unauthorized Hacks 17 | . 1 . 3 . 2 2 . . . . 1 . 5 2 . . 1 Terminals 8 | . 1 . 1 . 1 . . . . . . . 3 1 . . 1 Track 3 | . . . . . . . . . . . . . 2 1 . . . Botnet 4 | . 1 . 1 . 1 . . . . . . . 1 . . . . Disrupt 1 | . . . . . . . . . . . . . . . . . 1 Fabricators . | . . . . . . . . . . . . . . . . . . Repair Stations . | . . . . . . . . . . . . . . . . . . Recycling Units 5 | . . . . . 1 . . . . . 1 . 2 1 . . . Recyclers 5 | . . . . . 1 . . . . . 1 . 2 1 . . . Scanalyzers 4 | . . . 2 . . 2 . . . . . . . . . . . Researchers 4 | . . . 2 . . 2 . . . . . . . . . . . Garrison Access . | . . . . . . . . . . . . . . . . . . Data Cores Recovered 2 | . . . 2 . . . . . . . . . . . . . . Used 2 | . . . 2 . . . . . . . . . . . . . . Hacking Detections 56 | . 3 . 5 . 4 8 . 1 . . 5 . 11 14 4 . 1 Full Trace Events 7 | . . . . . . 2 . . . . 2 . 1 2 . . . Feedback Events . | . . . . . . . . . . . . . . . . . . Feedback Blocked . | . . . . . . . . . . . . . . . . . . Robot Schematics Acquired . | . . . . . . . . . . . . . . . . . . Robots Built . | . . . . . . . . . . . . . . . . . . Matter . | . . . . . . . . . . . . . . . . . . Time . | . . . . . . . . . . . . . . . . . . Total Robot Build Rating . | . . . . . . . . . . . . . . . . . . Part Schematics Acquired . | . . . . . . . . . . . . . . . . . . Parts Built 6 | . . . . . . 4 . . . . . . 2 . . . . Matter 658 | . . . . . . 424 . . . . . . 234 . . . . Time 270 | . . . . . . 212 . . . . . . 58 . . . . Total Part Build Rating 38 | . . . . . . 24 . . . . . . 14 . . . . Parts Repaired . | . . . . . . . . . . . . . . . . . . Time . | . . . . . . . . . . . . . . . . . . Parts Recycled . | . . . . . . . . . . . . . . . . . . Recycled Matter . | . . . . . . . . . . . . . . . . . . Retrieved Matter . | . . . . . . . . . . . . . . . . . . Retrieved Components 25 | . . . . . 3 . . . . . . . 12 10 . . . Parts Scanalyzed . | . . . . . . . . . . . . . . . . . . Part Schematics Acquired . | . . . . . . . . . . . . . . . . . . Parts Damaged . | . . . . . . . . . . . . . . . . . . Bothacking | -11 -10 -10 -9 -9 -8 -7 -7 -7 -7 -6 -6 -6 -6 -6 -6 -6 -6 ------------ Run | Scr Mat Min Mat Min Mat Fac Low Low Zio Pro Fac Gar Fac Ext Cet Arc Hub Used RIF Installer 1 | . . . . . . . . . . . . 1 . . . . . Robots Hacked 8 | . . . . . . . . . 6 . . . 1 1 . . . Non-combat 3 | . . . . . . . . . 2 . . . 1 . . . . Combat 5 | . . . . . . . . . 4 . . . . 1 . . . Robot Hacks Applied 8 | . . . . . . . . . 6 . . . 1 1 . . . parse_system 8 | . . . . . . . . . 6 . . . 1 1 . . . Relay Couplers Released 13 | . . . . . . . . . . . . 10 3 . . . . Machine Destruction 13 | . . . . . . . . . . . . 10 3 . . . . Attached 1 | . . . . . . . . . . . . 1 . . . . . Robots Rewired 10 | . . . . . . . 1 . . . . . 2 7 . . . Allies Hacked . | . . . . . . . . . . . . . . . . . . Hacks Repelled . | . . . . . . . . . . . . . . . . . . Allies | -11 -10 -10 -9 -9 -8 -7 -7 -7 -7 -6 -6 -6 -6 -6 -6 -6 -6 -------- Run | Scr Mat Min Mat Min Mat Fac Low Low Zio Pro Fac Gar Fac Ext Cet Arc Hub Total Allies 17 | . . . . . . . 1 . . . . . 2 13 1 . . Largest Group 7 | . . . . . . . 1 1 . . . . 1 7 5 . . Highest-Rated Group 309 | . . . . . . . 30 30 . . . . 41 309 242 . . Highest-Rated Ally 156 | . . . . . . . 30 30 . . . . 41 156 128 . . Total Orders 11 | . . . . . . . . . . . 2 . 9 . . . . EXPLORE 7 | . . . . . . . . . . . 2 . 5 . . . . RETURN 4 | . . . . . . . . . . . . . 4 . . . . Ally Attacks 156 | . . . . . . . 1 4 . . . . 2 110 39 . . Total Damage 3862 | . . . . . . . 37 141 . . . . 34 2909 741 . . Kills 33 | . . . . . . . . 2 . . . . . 25 6 . . Allies Corrupted . | . . . . . . . . . . . . . . . . . . Allies Melted . | . . . . . . . . . . . . . . . . . . Intel | -11 -10 -10 -9 -9 -8 -7 -7 -7 -7 -6 -6 -6 -6 -6 -6 -6 -6 ------- Run | Scr Mat Min Mat Min Mat Fac Low Low Zio Pro Fac Gar Fac Ext Cet Arc Hub Robot Analysis Total 2 | . . . . . . 1 . . . . . . . 1 . . . Derelict Logs Recovered 5 | . . 1 . 1 . . . . 1 2 . . . . . . . Drone Launches 5 | . . . . . . . . . . . 2 . 3 . . . . Drone Recoveries 5 | . . . . . . . . . . . 2 . 3 . . . . Exploration | -11 -10 -10 -9 -9 -8 -7 -7 -7 -7 -6 -6 -6 -6 -6 -6 -6 -6 ------------- Run | Scr Mat Min Mat Min Mat Fac Low Low Zio Pro Fac Gar Fac Ext Cet Arc Hub Turns Passed 15524 | . 552 226 969 574 935 2287 1104 1022 1762 651 603 651 2018 1066 660 206 238 Spaces Moved 9171 | 1 394 143 598 329 507 1473 644 598 1066 332 313 364 1157 624 393 115 120 Core 19 | . . . . . . . . . . . . 17 2 . . . . Treads 2804 | . . . . . . 116 644 598 1066 332 48 . . . . . . Legs 4662 | 1 394 143 590 329 507 . . . . . 265 205 976 624 393 115 120 Wheels 1379 | . . . . . . 1357 . . . . . 2 20 . . . . Hover 8 | . . . 8 . . . . . . . . . . . . . . Flight 299 | . . . . . . . . . . . . 140 159 . . . . Fastest Speed 28 | 120 120 150 112 150 122 93 160 155 163 163 120 28 28 120 120 120 120 Average Speed 133 | 120 125 150 133 150 143 109 160 160 163 163 133 89 121 120 120 120 120 Slowest Speed 500 | 120 150 150 310 150 156 160 160 163 163 163 240 120 500 120 120 120 120 Overloaded Moves . | . . . . . . . . . . . . . . . . . . Propulsion Burnouts . | . . . . . . . . . . . . . . . . . . Robots Hopped . | . . . . . . . . . . . . . . . . . . Cave-ins Triggered 1 | . . . . . . . . . . . . . . . . . 1 Exploration Rate (%) 52 | 2 58 53 50 67 40 35 75 74 87 52 10 45 31 80 73 92 24 Regions Visited 17 Branch Regions 10 Pre-discovered Areas 1 | . . 1 . . . . . . . . . . . . . . . Known Exits Taken 9 | . 1 1 1 1 1 1 . . . 1 1 . 1 . . . . Unknown Exits Taken 7 | 1 . . . . . . 1 1 1 . . . . 1 1 1 . Scrap Searched 17 | . . 1 . 1 . . 9 2 2 2 . . . . . . . Spaces Dug 30 | . . . . . . 10 15 . . . 3 . 2 . . . . Terrain Destroyed 695 | . 22 . 14 . 3 102 87 4 . 132 16 36 126 13 89 8 43 Melee 15 | . . . . . . 10 . . . . 3 . 2 . . . . Projectile 74 | . . . . . . 1 4 4 . 3 3 . 3 13 21 8 14 AOE 606 | . 22 . 14 . 3 91 83 . . 129 10 36 121 . 68 . 29 Terrain Rammed . | . . . . . . . . . . . . . . . . . . Walls Destroyed . | . . . . . . . . . . . . . . . . . . Machines Disabled . | . . . . . . . . . . . . . . . . . . Actions | -11 -10 -10 -9 -9 -8 -7 -7 -7 -7 -6 -6 -6 -6 -6 -6 -6 -6 --------- Run | Scr Mat Min Mat Min Mat Fac Low Low Zio Pro Fac Gar Fac Ext Cet Arc Hub Total 11452 | . 446 150 723 405 644 2004 680 630 1086 382 444 607 1648 827 481 137 158 Wait 1004 | . 11 2 45 69 55 348 10 . . . 55 69 260 72 2 . 6 Move 9153 | . 393 142 597 328 506 1472 643 597 1065 331 312 362 1156 623 392 114 120 Hop . | . . . . . . . . . . . . . . . . . . Pick Up 71 | . 12 2 5 2 8 12 . 3 . 1 3 13 9 . . . 1 Fast Attach 132 | . 2 . 14 . 9 26 1 3 5 1 9 13 36 . 12 1 . Attach 36 | . . . . . 2 8 . . . 3 4 9 6 1 1 . 2 Detach 29 | . . . . . 2 10 . . . . 3 4 9 . 1 . . Swap 116 | . 4 . 11 . 8 15 3 3 3 5 11 4 20 11 13 1 4 Drop 173 | . 12 1 23 2 13 34 1 7 6 2 10 8 35 4 14 1 . Fire 480 | . 11 3 28 3 41 60 17 12 . 34 13 41 78 48 46 20 25 Melee 88 | . 1 . . . . 19 . 5 7 5 24 10 12 5 . . . Ram 1 | . . . . . . . . . . . . 1 . . . . . Kick 10 | . . . . . . . . . . . . 9 . 1 . . . Crush . | . . . . . . . . . . . . . . . . . . Escape Stasis 46 | . . . . . . . . . . . . 42 1 3 . . . Rewire 67 | . . . . . . . 4 . . . . . 4 59 . . . Trap 46 | . . . . 1 . . 1 . . . . 22 22 . . . . Miscellaneous . | . . . . . . . . . . . . . . . . . . Route ------- -11/Scrapyard -10/Materials (discovered 3 exits: *Mat / *Min x2) -10/Mines -9/Materials (discovered 3 exits: *Mat / *Min x2) -9/Mines -8/Materials (discovered 3 exits: *Fac x3) -7/Factory (discovered 5 exits: *Fac / Sto x2 / *Low x2) -7/Lower Caves -7/Lower Caves (discovered 2 exits: *Fac / *Zio) -7/Zion -6/Proximity Caves -6/Factory -6/Garrison -6/Factory (discovered 5 exits: [*Fac] / *Low x2 / *Ext x2) -6/Extension (discovered 2 exits: [*Fac] / *Cet) -6/Cetus (discovered 2 exits: [*Fac] / *Arc) -6/Archives (discovered 3 exits: [*Fac] / *Hub x2) -6/Hub_04(d) History --------- Turn | Location | Event 1 | -11/Scrapyard | Discovered new exit (range 0) 1 | -11/Scrapyard | Entered Materials 168 | -10/Materials | Identified exit to Mines 197 | -10/Materials | Discovered new exit (range 3) 313 | -10/Materials | Build established: Mutant 553 | -10/Materials | Entered Mines 615 | -10/Mines | Discovered new exit (range 14) 705 | -10/Mines | Learned location of Zion (-7) 739 | -10/Mines | Met a Derelict shopkeep closing up shop 776 | -10/Mines | Identified exit to Materials 779 | -10/Mines | Entered Materials 779 | -9/Materials | Evolved 2 slots: Propulsion x1, Utility x1 1090 | -9/Materials | Discovered new exit (range 16) 1172 | -9/Materials | Discovered new exit (range 15) 1549 | -9/Materials | Build established: Scavenger-Mutant 1587 | -9/Materials | Identified exit to Mines 1748 | -9/Materials | Entered Mines 1850 | -9/Mines | Build established: Mutant 1887 | -9/Mines | Found a hidden stash of uninstalled traps 2057 | -9/Mines | Learned Materials security intel 2057 | -9/Mines | Discovered new exit (range 7) 2064 | -9/Mines | Identified exit to Materials 2322 | -9/Mines | Entered Materials 2322 | -8/Materials | Evolved 2 slots: Propulsion x1, Utility x1 2438 | -8/Materials | Destroyed 7 combat bots 2899 | -8/Materials | Discovered new exit (range 13) 3177 | -8/Materials | Identified exit to Factory 3257 | -8/Materials | Entered Factory 3257 | -7/Factory | Evolved 2 slots: Propulsion x1, Weapon x1 3394 | -7/Factory | Garrison activated, responded to threat 3431 | -7/Factory | Lost 5 parts (1p3n1u) 3466 | -7/Factory | Destroyed 8 combat bots 3534 | -7/Factory | Build established: Gunner 4641 | -7/Factory | Fabricated Gyrokinetic Inverter? 4662 | -7/Factory | Discovered new exit (range 16) 4777 | -7/Factory | Identified exit to Storage 4777 | -7/Factory | Identified exit to Lower Caves 5157 | -7/Factory | Core integrity fell below 50% 5349 | -7/Factory | Fabricated Hvy. Treads (x2) 5544 | -7/Factory | Entered Lower Caves 5963 | -7/Lower Caves | Spotted B-75 Beast 6029 | -7/Lower Caves | Destroyed B-75 Beast 6262 | -7/Lower Caves | Attracted the attention of an 0b10 outpost 6314 | -7/Lower Caves | Destroyed 8 combat bots 6494 | -7/Lower Caves | Attracted the attention of an 0b10 checkpoint 6508 | -7/Lower Caves | Discovered new exit (range 14) 6648 | -7/Lower Caves | Entered another Lower Caves area 6648 | -7/Lower Caves | Accompanied by 1 ally 6659 | -7/Lower Caves | Discovered new exit (range 10) 6806 | -7/Lower Caves | Build established: Mutant 6921 | -7/Lower Caves | Attacked by a delusional Derelict stockpiling parts 7453 | -7/Lower Caves | Discovered new exit (range 10) 7533 | -7/Lower Caves | Attracted the attention of an 0b10 base 7670 | -7/Lower Caves | Entered Zion 7743 | -7/Zion | System corruption cleaned by Quarantine Array 7777 | -7/Zion | Given the Hacking Drone Bay 7781 | -7/Zion | Found Prototype Device 7781 | -7/Zion | Identified Hacking Drone Bay 7810 | -7/Zion | Discovered new exit (range 16) 8011 | -7/Zion | Build established: Gunner 8025 | -7/Zion | Learned Factory emergency access door positions 8400 | -7/Zion | Found Prototype Launcher 8400 | -7/Zion | Identified Rocket Array 8409 | -7/Zion | Found Prototype Launcher 8409 | -7/Zion | Identified Gui. Missile Launcher 8416 | -7/Zion | Found Rocket Array 8702 | -7/Zion | Build established: Mutant 9089 | -7/Zion | Found Relay Coupler [Programmer] 9235 | -7/Zion | Learned Factory security intel 9432 | -7/Zion | Entered Proximity Caves 9617 | -6/Proximity Caves | Attracted the attention of an 0b10 checkpoint 9680 | -6/Proximity Caves | Identified exit to Factory 9685 | -6/Proximity Caves | Learned Factory terminal intel 10083 | -6/Proximity Caves | Entered Factory 10083 | -6/Factory | Evolved 2 slots: Propulsion x1, Utility x1 10086 | -6/Factory | Loaded intel: 22 terminal locations 10283 | -6/Factory | Garrison activated, responded to threat 10634 | -6/Factory | Build established: Scavenger-Mutant 10679 | -6/Factory | Identified exit to Garrison 10686 | -6/Factory | Entered Garrison 10692 | -6/Garrison | Installed Relay Interface Framework 10726 | -6/Garrison | Triggered checkpoint 10799 | -6/Garrison | Garrison Relay disabled 10853 | -6/Garrison | Spotted B-75 Beast 10863 | -6/Garrison | Triggered checkpoint 10865 | -6/Garrison | Triggered checkpoint 10873 | -6/Garrison | Triggered checkpoint 10888 | -6/Garrison | Destroyed B-75 Beast 11114 | -6/Garrison | Triggered checkpoint 11186 | -6/Garrison | Core integrity fell below 50% 11208 | -6/Garrison | Lost 14 parts (1p6n3u4w) 11325 | -6/Garrison | Garrison Relay disabled 11333 | -6/Garrison | Discovered new exit (range 14) 11337 | -6/Garrison | Entered Factory 11514 | -6/Factory | Lost 6 parts (1p5n) 12038 | -6/Factory | Fabricated Railgun (x2) 12261 | -6/Factory | Identified exit to Lower Caves 12261 | -6/Factory | Identified exit to Extension 12270 | -6/Factory | Discovered new exit (range 19) 13355 | -6/Factory | Entered Extension 13708 | -6/Extension | Rescued a captive Derelict 13708 | -6/Extension | Rescued a captive Derelict 13733 | -6/Extension | Rescued A7 13778 | -6/Extension | Spotted B-75 Beast 13809 | -6/Extension | Allies destroyed B-75 Beast 13815 | -6/Extension | Spotted B-75 Beast 13827 | -6/Extension | Destroyed B-75 Beast 13962 | -6/Extension | Rescued a captive Derelict 13980 | -6/Extension | Rescued a captive Derelict 13984 | -6/Extension | Rescued a captive Derelict 14190 | -6/Extension | Build established: Scavenger-Tank 14305 | -6/Extension | Disrupted transfer network 14365 | -6/Extension | Discovered new exit (range 10) 14367 | -6/Extension | Discovered new exit (range 6) 14421 | -6/Extension | Entered Cetus 14421 | -6/Cetus | Accompanied by 5 allies (A7) 14426 | -6/Cetus | Acquired a Cetus Manufacturing Module code from A7 14436 | -6/Cetus | Spotted Cetus Guard 14436 | -6/Cetus | Spotted Cetus Guard 14436 | -6/Cetus | Spotted Cetus Guard 14436 | -6/Cetus | Spotted Cetus Guard 14441 | -6/Cetus | Allies destroyed Cetus Guard 14450 | -6/Cetus | Allies destroyed Cetus Guard 14457 | -6/Cetus | Allies destroyed Cetus Guard 14465 | -6/Cetus | Allies destroyed Cetus Guard 14534 | -6/Cetus | Started Cetus Manufacturing Module 14559 | -6/Cetus | Manufactured an Enhanced Grunt 14559 | -6/Cetus | Cetus Manufacturing Module disabled 14638 | -6/Cetus | Discovered new exit (range 22) 14671 | -6/Cetus | Spotted Cetus Guard 14673 | -6/Cetus | Spotted Cetus Guard 14677 | -6/Cetus | Discovered new exit (range 22) 14682 | -6/Cetus | Spotted Cetus Guard 14690 | -6/Cetus | Destroyed Cetus Guard 14691 | -6/Cetus | Spotted Cetus Guard 14705 | -6/Cetus | Core integrity fell below 20% 14706 | -6/Cetus | Destroyed Cetus Guard 14735 | -6/Cetus | Destroyed Cetus Guard 14760 | -6/Cetus | Met Revision 17 15062 | -6/Cetus | Destroyed 7 combat bots 15081 | -6/Cetus | Entered Archives 15160 | -6/Archives | Unable to access archive contents 15170 | -6/Archives | Discovered new exit (range 21) 15176 | -6/Archives | Unable to access archive contents 15183 | -6/Archives | Discovered new exit (range 22) 15189 | -6/Archives | Unable to access archive contents 15228 | -6/Archives | Discovered new exit (range 13) 15287 | -6/Archives | Entered Hub_04(d) 15526 | -6/Hub_04(d) | Crushed by falling debris 15526 | -6/Hub_04(d) | Smashed by cave-in Last Messages --------------- 15515_ Y-54 Guardian suffers critical hit. 15515_ Destroyed Gatling Laser. 15515_ Slug penetrates Y-54 Guardian. 15518_ K-01 Serf collects debris. 15518_ Slug penetrates Y-54 Guardian. 15518_ Y-54 Guardian suffers critical hit. 15518_ Destroyed Imp. Deuterium Engine. 15518_ Slug penetrates Y-54 Guardian. 15518_ Y-54 Guardian destroyed. 15522_ K-01 Serf collects debris. 15525_ Y-54 Guardian suffers critical hit. 15525_ Y-54 Guardian destroyed. 15525_ Slug penetrates Wall. 15526_ The unstable cave ceiling collapses. 15526_ Crushed by falling debris. 15526_ Railgun destroyed. 15526_ System corrupted by crushing effect (+2). 15526_ Adv. Heat Sink destroyed. 15526_ System corrupted by crushing effect (+4). [Achievement: I Think I Know What's Going On] Map ----- +----------------------------------------------------+ | ?????????????????????????????????????????????????? | | ?????????????????????????????????????????????????? | | ?????????????????????????????????????????????????? | | ?????????????????????????????????????????????????? | | ?????????????????????????????????????????????????? | | ?????????????????????????????????????????????????? | | ?????????????????????????????????????????????????? | | ?????????????????????????????????????????????????? | | ?????????????????????????????????????????????????? | | ????????????????????????#?????????? ?????????????? | | ???????????????????????? ??????????!?????????????? | | ???????????????????????? ?????????? ?????????????? | | ???????????????????????? ?#+#######+###??????????? | | ???????????????????????? # #??????????? | | ???????????????????????# # #??????????? | | ???????????????????????# # #??????????? | | ???????????????????????# # #??????????? | | ???????????????????????# # #??????????? | | ????????????##########?# # #??????????? | | ????????????# #?# # ##?????????? | | ????????????# ! #?# # #?????????? | | ?????????? # #?# # !! ###????????? | | ?????????? + """" #?# # ! ; #????????? | | ????????????# """" #?# #%* ##?????????? | | ????????????# """" ###*#[=! k /??????????? | | ????????????# """" +! =@=%#???#/#??????????????? | | ????????????# ###%!k[; #?# #??????????????? | | ????????????# #?# ! # # #?????????#????? | | ????????????##########?# #??## #?###### ????? | | ???????????????????????# #???# #! # ???? | | ???????????????????????# ##### # " " #? ???? | | ???????????????????????# + " " #? ???? | | ????????????????????####+##+##### # " " #?? /???? | | ????????????????????# ! # # #?? ??? | | ????????????????????# + ###########"#### | | ????????????????????# # # [ # | | ????????????????????# # # # | | ????????????????????# # # " " """ "" | | ????????????????????# # # "" | | ????????????????????#######+##### # """ "" " | | ??????????????????????????# ^ # " | | ??????????????????????????# # "" " # | | ???????????????????????#### """ # | | ???????????????????????# ## # # #/ | | ???????????????????????# ## # % * | | ???????????????????????# ## # %=%%= | | ???????????????????????# ! #??# ==%!= | | ???????????????????????########## #??# # #*# ! | | ???????????????????????????######+#### # """[ *[ | | ???????????????????????????# # # "T" #[ | +----------------------------------------------------+ Best States ------------- Heat Dissipation 64 Energy Generation 25 Energy Capacity 590 Matter Stores 300 Matter Capacity 300 Sight Range 22 Terrain Scan Range 24 Terrain Scan Density 10 Heat Shielding 100 Armor Coverage 225 Resistance: KI 20 Resistance: TH 20 Resistance: EX 20 Resistance: EM 20 Resistance: I 20 Resistance: S 20 Resistance: P 20 Utility Shielding 66 Weapon Shielding 66 Phase Shifting 5 Evasion (%) 64 Targeting Accuracy 8 Armor Integrity Analysis 33 Recoil Reduction 5 Particle Charging 15 Kinecelleration 30 Offensive Hacking 10 Item Schematics ----------------- None Robot Schematics ------------------ None Fabricated ------------ Gyrokinetic Inverter | x2 | -7/Factory | Preloaded Hvy. Treads | x2 | -7/Factory | Preloaded Railgun | x2 | -6/Factory | Preloaded Alien Tech Used ----------------- None Achievements -------------- Hehehe I Think I Know What's Going On Quick And Dirty Challenges ------------ None Game ------ Seed MediumDisruptionDatajack Manual? 0 Play Time 03:21:57 Cumulative 56.9 hours Start 2021.05.10 @ 16:45:15 End 2021.05.10 @ 20:37:58 Sessions 1 Manual Loads 0 Difficulty Adventurer Special Mode None Game No. 26 Rogue 1 Adventurer 25 Explorer 0 Win Type - Total 1 Types 1/0/0/0/0/0/0/0/0 Lore% 50 Gallery% 61 Achievement% 46 Wizard Run 0 Options --------- ASCII 0 Keyboard 0 Movement Vi Keybinds 0 Fullscreen 1 Font 14/Dina Map View 72x54 Tactical HUD 1 Map Filters NONE Filters NONE Steam 1 RUN: bf291045-73a2-400e-9bb1-b9aa97c18873